fUSD/lending_fUSD_20260109
["ID","MTS","AMOUNT","RATE_DAILY","PERIOD"]
[401157964,1767991845789,-500.0,0.00017973,2]
[401157965,1767991845799,-500.0,0.00017973,2]
[401157966,1767991845808,-500.0,0.00017973,2]
[401157967,1767991845818,-500.0,0.00017973,2]
[401157968,1767991845828,-500.0,0.00017973,2]
[401157969,1767991845837,-500.0,0.00017973,2]
[401157970,1767991845849,-500.0,0.00017973,2]
[401157971,1767991845861,-286.84842062,0.00017973,2]
[401157972,1767991845871,-500.0,0.00017973,2]
[401157973,1767991845881,-500.0,0.00017973,2]
[401157974,1767991845893,-500.0,0.00017973,2]
[401157975,1767991845903,-500.0,0.00017973,2]
[401157976,1767991845912,-500.0,0.00017973,2]
[401157977,1767991845922,-500.0,0.00017973,2]
[401157979,1767991845932,-500.0,0.00017973,2]
[401157980,1767991845941,-500.0,0.00017973,2]
[401157981,1767991845951,-578.02071049,0.00017973,2]
[401157982,1767991845960,-500.0,0.00017973,2]
[401157983,1767991845970,-500.0,0.00017973,2]
[401157984,1767991845979,-500.0,0.00017973,2]
[401157986,1767991845988,-500.0,0.00017973,2]
[401157988,1767991845998,-279.31517583,0.00017973,2]
[401157989,1767991846007,-500.0,0.00017973,2]
[401157990,1767991846017,-500.0,0.00017973,2]
[401157991,1767991846027,-500.0,0.00017973,2]
[401157992,1767991846036,-500.0,0.00017973,2]
[401157994,1767991846046,-579.00077669,0.00017973,2]
[401157995,1767991846055,-500.0,0.00017973,2]
[401157996,1767991846065,-195.06667749,0.00017973,2]
[401157997,1767991846075,-515.27642925,0.00017973,2]
[401157998,1767991846084,-168.53464326,0.00017973,2]
[401157999,1767991846093,-500.0,0.00017973,2]
[401158000,1767991846103,-500.0,0.00017973,2]
[401158001,1767991846112,-500.0,0.00017973,2]
[401158002,1767991846121,-500.0,0.00017973,2]
[401158003,1767991846130,-500.0,0.00017973,2]
[401158004,1767991846140,-500.0,0.00017973,2]
[401158005,1767991846150,-398.03125352,0.00017973,2]
[401158006,1767991846159,-500.0,0.00017973,2]
[401158007,1767991846169,-500.0,0.00017973,2]
[401158008,1767991846179,-609.94892981,0.00017973,2]
[401158009,1767991846188,-429.09119552,0.00017973,2]
[401158010,1767991846197,-500.0,0.00017973,2]
[401158011,1767991846207,-501.05787152,0.00017973,2]
[401158012,1767991846216,-500.0,0.00017973,2]
[401158013,1767991846226,-500.0,0.00017973,2]
[401158014,1767991846236,-500.0,0.00017973,2]
[401158015,1767991846245,-208.06887662,0.00017973,2]
[401158016,1767991846255,-500.0,0.00017973,2]
[401158017,1767991846264,-500.0,0.00017973,2]
[401158018,1767991846274,-500.0,0.00017973,2]
[401158019,1767991846283,-500.0,0.00017973,2]
[401158020,1767991846293,-182.86859792,0.00017973,2]
[401158021,1767991846302,-500.0,0.00017973,2]
[401158022,1767991846311,-546.15438132,0.00017973,2]
[401158023,1767991846320,-500.0,0.00017973,2]
[401158024,1767991846330,-500.0,0.00017973,2]
[401158025,1767991846339,-500.0,0.00017973,2]
[401158026,1767991846348,-500.0,0.00017973,2]
[401158027,1767991846357,-554.86072459,0.00017973,2]
[401158028,1767991846367,-165.3256661,0.00017973,2]
[401158029,1767991846376,-500.0,0.00017973,2]
[401158030,1767991846385,-500.0,0.00017973,2]
[401158031,1767991846396,-150.0,0.00017973,2]
[401158032,1767991846405,-150.0,0.00017973,2]
[401158033,1767991846414,-152.75103688,0.00017982,2]
[401158034,1767991846423,-500.0,0.00017982,2]
[401158035,1767991846433,-957.65,0.00017984,2]
[401158036,1767991846442,-376.87280184,0.0001799,2]
[401158037,1767991846451,-376.87280184,0.0001799,2]
[401158038,1767991846461,-150.0,0.00017999,2]
[401158039,1767991846471,-273.60393039,0.00017999,2]
[401158040,1767991846480,-1006.3197,0.00017999,2]
[401158041,1767991846490,-300.0,0.00017999,2]
[401158042,1767991846499,-666.0,0.00017999,2]
[401158043,1767991846508,-300.0,0.00017999,2]
[401158044,1767991846518,-300.0,0.00017999,2]
[401158045,1767991846527,-666.0,0.00017999,2]
[401158046,1767991846536,-300.0,0.00017999,2]
[401158047,1767991846546,-21661.999999,0.00018,2]
[401158048,1767991846555,-1229195.40974091,0.00018,2]
[401158049,1767991848747,-24.76670838,0.000179,2]
[401158050,1767991848759,-128.09744562,0.000179,2]
[401158051,1767991848769,-151.0,0.000179,2]
[401158052,1767991848779,-152.864154,0.000179,2]
[401158053,1767991848788,-151.0,0.000179,2]
[401158054,1767991848798,-314.13517238,0.00018,2]
[401158055,1767991848888,-152.864154,0.000179,2]
[401158056,1767991848899,-177.42580995,0.00018,2]
[401158057,1767991848910,-533.77400246,0.00018,2]
[401158058,1767991848923,-15161.35483276,0.00018,2]
[401158059,1767991848934,-971.81328667,0.00018,2]
[401158060,1767991848946,-288.64879627,0.00018,2]
[401158061,1767991848984,-353.74500003,0.00018,2]
[401158062,1767991849937,-151.0,0.000179,2]
[401158063,1767991849948,-151.0,0.000179,2]
[401158064,1767991849958,-574.29328672,0.00018,2]
[401158065,1767991849970,-32972.03076895,0.00018,2]
[401158066,1767991849982,-5754.74219162,0.00018,2]
[401158067,1767991849994,-3896.78601283,0.00018,2]
[401158068,1767991850028,-3973.23260477,0.00018,2]
[401158069,1767991850040,-1292.52388058,0.00018,2]
[401158070,1767991850052,-3919.033166,0.00018,2]
[401158073,1767992801671,999.0,0.00013749,3]
[401158083,1767993032072,-654.27,0.00013589,2]
[401158084,1767993032082,-600.0,0.00013709,2]
[401158086,1767993032091,-150.0,0.00013829,2]
[401158087,1767993032100,-1400.83419091,0.00013833,2]
[401158089,1767993032110,-600.0,0.00013833,2]
[401158091,1767993032119,-1200.0,0.00013915,2]
[401158093,1767993032128,-1001.92487185,0.00013915,2]
[401158095,1767993032138,-157.79856203,0.00013916,2]
[401158097,1767993032147,-500.0,0.00013916,2]
[401158098,1767993032156,-500.0,0.00013916,2]
[401158099,1767993032169,-500.0,0.00013916,2]
[401158101,1767993032178,-500.0,0.00013916,2]
[401158103,1767993032187,-500.0,0.00013916,2]
[401158105,1767993032196,-500.0,0.00013916,2]
[401158107,1767993032206,-500.0,0.00013916,2]
[401158109,1767993032215,-396.78458246,0.00013916,2]
[401158111,1767993032226,-500.0,0.00013916,2]
[401158113,1767993032236,-500.0,0.00013916,2]
[401158114,1767993032246,-500.0,0.00013916,2]
[401158115,1767993032255,-500.0,0.00013916,2]
[401158116,1767993032264,-500.0,0.00013916,2]
[401158117,1767993032273,-500.0,0.00013916,2]
[401158118,1767993032282,-500.0,0.00013916,2]
[401158119,1767993032293,-500.0,0.00013916,2]
[401158120,1767993032302,-500.0,0.00013916,2]
[401158121,1767993032312,-500.0,0.00013916,2]
[401158122,1767993032321,-500.0,0.00013916,2]
[401158123,1767993032331,-500.0,0.00013916,2]
[401158124,1767993032341,-500.0,0.00013916,2]
[401158125,1767993032350,-500.0,0.00013916,2]
[401158126,1767993032360,-500.0,0.00013916,2]
[401158127,1767993032369,-500.0,0.00013916,2]
[401158128,1767993032378,-13914.25354137,0.00013917,2]
[401158129,1767993032434,-366.13195705,0.00013917,2]
[401158130,1767993032498,-9123.7316167,0.00013917,2]
[401158131,1767993032512,-902.53,0.00013917,2]
[401158132,1767993032527,-61001.12288488,0.00013917,2]
[401158133,1767993032536,-301.85,0.00013989,2]
[401158134,1767993032545,-755.5,0.00014154,2]
[401158135,1767993032554,-4588.41,0.00014282,2]
[401158136,1767993032563,-150.35471955,0.00014396,2]
[401158137,1767993032572,-500.0,0.00014396,2]
[401158138,1767993032582,-500.0,0.00014396,2]
[401158139,1767993032591,-500.0,0.00014396,2]
[401158140,1767993032600,-500.0,0.00014396,2]
[401158141,1767993032609,-151.10085397,0.00014396,2]
[401158142,1767993032618,-986.0,0.00014396,2]
[401158143,1767993032627,-1000.0,0.00014421,2]
[401158144,1767993032636,-500.0,0.00014451,2]
[401158145,1767993032646,-500.0,0.00014451,2]
[401158146,1767993032655,-500.0,0.00014451,2]
[401158147,1767993032664,-500.0,0.00014451,2]
[401158148,1767993032673,-878.92481471,0.00014451,2]
[401158149,1767993032684,-107.07518529,0.00014451,2]
[401158150,1767993032695,-192.92481471,0.00014505,2]
[401158151,1767993032707,-307.07518529,0.00014505,2]
[401158152,1767993032717,-490.93864057,0.00014506,2]
[401158153,1767993032727,-213.17794627,0.00014506,2]
[401158154,1767993032737,-286.82205373,0.00014506,2]
[401158155,1767993032746,-500.0,0.00014506,2]
[401158156,1767993032755,-500.0,0.00014506,2]
[401158157,1767993032764,-309.70057815,0.00014506,2]
[401158158,1767993032798,-676.29942185,0.00014506,2]
[401158159,1767993032807,-136.015579,0.0001456,2]
[401158160,1767993032818,-363.984421,0.0001456,2]
[401158161,1767993032828,-500.0,0.0001456,2]
[401158162,1767993032837,-500.0,0.0001456,2]
[401158163,1767993032846,-986.0,0.0001456,2]
[401158164,1767993032856,-356.165579,0.00014561,2]
[401158170,1767993038161,-2565.66656917,0.00014561,2]
[401158171,1767993038177,-984.20333733,0.00014561,2]
[401158172,1767993038188,-2913.66801472,0.00014561,2]
[401158173,1767993038239,-852.00000021,0.00014561,2]
[401158174,1767993038251,-1056.89806984,0.00014561,2]
[401158175,1767993038291,-3254.8031898,0.00014561,2]
[401158176,1767993038302,-1868.15878571,0.00014561,2]
[401158177,1767993038337,-664.38666661,0.00014561,2]
[401158178,1767993038398,-5009.01613693,0.00014561,2]
[401158180,1767993038408,-1157.3201,0.00014562,2]
[401158182,1767993038417,-236.5897,0.00014562,2]
[401158183,1767993038427,-500.0,0.00014578,2]
[401158184,1767993038436,-2500.0,0.00014579,2]
[401158185,1767993038445,-517.05568559,0.00014615,2]
[401158186,1767993038454,-638.95224088,0.00014615,2]
[401158187,1767993038464,-500.0,0.00014615,2]
[401158188,1767993038474,-986.0,0.00014615,2]
[401158189,1767993038484,-185.84425672,0.00014625,2]
[401158190,1767993038494,-1078.94,0.0001466,2]
[401158191,1767993038504,-3519.942,0.00014661,2]
[401158192,1767993038513,-180.807,0.00014661,2]
[401158193,1767993038523,-42540.73489813,0.00014661,2]
[401158194,1767993038532,-150.99,0.00014661,2]
[401158195,1767993038542,-4800.86,0.00014661,2]
[401158196,1767993038552,-150.99,0.00014661,2]
[401158197,1767993038561,-999.99,0.00014661,2]
[401158198,1767993038571,-511.43021314,0.00014662,2]
[401158199,1767993038580,-4999.99,0.00014662,2]
[401158200,1767993038590,-2101.13,0.00014662,2]
[401158201,1767993038599,-9999.99,0.00014662,2]
[401158202,1767993038608,-9999.99,0.00014662,2]
[401158203,1767993038618,-9999.99,0.00014662,2]
[401158204,1767993038628,-299.99,0.00014662,2]
[401158205,1767993038637,-17262.86885344,0.00014662,2]
[401158206,1767993038647,-376.87280184,0.00014669,2]
[401158207,1767993038657,-500.0,0.0001467,2]
[401158208,1767993038667,-986.0,0.0001467,2]
[401158209,1767993038676,-500.0,0.0001467,2]
[401158210,1767993038686,-500.0,0.0001467,2]
[401158211,1767993038696,-500.0,0.0001467,2]
[401158212,1767993038705,-500.0,0.0001467,2]
[401158213,1767993038715,-151.0,0.0001467,2]
[401158214,1767993038724,-500.0,0.0001467,2]
[401158215,1767993038734,-151.0,0.0001467,2]
[401158216,1767993038744,-500.0,0.0001467,2]
[401158217,1767993038754,-151.0,0.0001467,2]
[401158218,1767993038764,-500.0,0.0001467,2]
[401158219,1767993038774,-151.0,0.0001467,2]
[401158220,1767993038783,-500.0,0.0001467,2]
[401158221,1767993038794,-151.0,0.0001467,2]
[401158222,1767993038803,-500.0,0.0001467,2]
[401158223,1767993038813,-151.0,0.0001467,2]
[401158224,1767993038822,-500.0,0.0001467,2]
[401158225,1767993038832,-500.0,0.0001467,2]
[401158226,1767993038841,-151.0,0.0001467,2]
[401158227,1767993038851,-500.0,0.0001467,2]
[401158228,1767993038860,-500.0,0.0001467,2]
[401158229,1767993038874,-151.0,0.0001467,2]
[401158230,1767993038884,-500.0,0.0001467,2]
[401158231,1767993038893,-500.0,0.0001467,2]
[401158232,1767993038903,-500.0,0.0001467,2]
[401158233,1767993038913,-151.0,0.0001467,2]
[401158234,1767993038923,-500.0,0.0001467,2]
[401158235,1767993038935,-151.0,0.0001467,2]
[401158236,1767993038945,-500.0,0.0001467,2]
[401158237,1767993038955,-151.0,0.0001467,2]
[401158238,1767993038964,-500.0,0.0001467,2]
[401158239,1767993038974,-151.0,0.0001467,2]
[401158240,1767993038985,-151.0,0.0001467,2]
[401158241,1767993038995,-626.22881488,0.0001467,2]
[401158242,1767993039005,-151.56294487,0.0001467,2]
[401158243,1767993039015,-200.0,0.0001467,2]
[401158244,1767993039024,-200.0,0.0001467,2]
[401158245,1767993039034,-151.0,0.0001467,2]
[401158246,1767993039044,-151.0,0.0001467,2]
[401158247,1767993039054,-151.0,0.0001467,2]
[401158248,1767993039063,-151.0,0.0001467,2]
[401158249,1767993039074,-151.0,0.0001467,2]
[401158250,1767993039084,-151.0,0.0001467,2]
[401158251,1767993039093,-151.0,0.0001467,2]
[401158252,1767993039103,-151.0,0.0001467,2]
[401158253,1767993039113,-151.0,0.0001467,2]
[401158254,1767993039123,-151.0,0.0001467,2]
[401158255,1767993039132,-151.0,0.0001467,2]
[401158256,1767993039142,-151.0,0.0001467,2]
[401158257,1767993039151,-500.0,0.00014678,2]
[401158258,1767993039161,-500.0,0.00014678,2]
[401158259,1767993039174,-549.36394183,0.00014678,2]
[401158260,1767993039183,-503.22916224,0.00014678,2]
[401158261,1767993039193,-500.0,0.00014678,2]
[401158262,1767993039203,-556.51,0.00014678,2]
[401158263,1767993039214,-500.0,0.00014678,2]
[401158264,1767993039224,-178.26,0.00014678,2]
[401158265,1767993039238,-573.37968592,0.00014678,2]
[401158266,1767993039247,-500.0,0.00014678,2]
[401158267,1767993039257,-500.0,0.00014678,2]
[401158268,1767993039266,-500.0,0.00014678,2]
[401158269,1767993039276,-500.0,0.00014678,2]
[401158270,1767993039285,-500.0,0.00014678,2]
[401158271,1767993039295,-500.0,0.00014678,2]
[401158272,1767993039305,-500.0,0.00014678,2]
[401158273,1767993039315,-500.0,0.00014678,2]
[401158274,1767993039324,-500.0,0.00014678,2]
[401158275,1767993039333,-568.66331461,0.00014678,2]
[401158276,1767993039344,-500.0,0.00014678,2]
[401158277,1767993039354,-500.0,0.00014678,2]
[401158278,1767993039363,-500.0,0.00014678,2]
[401158279,1767993039373,-500.0,0.00014678,2]
[401158280,1767993039383,-1000.0,0.00014679,2]
[401158281,1767993039393,-33584.3474,0.00014679,2]
[401158282,1767993039403,-500.0,0.00014725,2]
[401158283,1767993039412,-986.0,0.00014725,2]
[401158284,1767993039422,-500.0,0.00014763,2]
[401158285,1767993039435,-408.10299042,0.00014763,2]
[401158286,1767993039445,-500.0,0.00014763,2]
[401158287,1767993039454,-500.0,0.00014763,2]
[401158288,1767993039464,-500.0,0.00014763,2]
[401158289,1767993039474,-321.53609261,0.00014763,2]
[401158290,1767993039484,-500.0,0.00014763,2]
[401158291,1767993039494,-301.85,0.00014766,2]
[401158292,1767993039503,-500.0,0.0001478,2]
[401158293,1767993039513,-986.0,0.0001478,2]
[401158294,1767993039523,-500.0,0.00014834,2]
[401158295,1767993039533,-986.0,0.00014834,2]
[401158296,1767993039543,-755.5,0.00014861,2]
[401158297,1767993039553,-500.0,0.00014889,2]
[401158298,1767993039563,-986.0,0.00014889,2]
[401158299,1767993039573,-185.8442567,0.00014918,2]
[401158300,1767993039584,-19524.96634931,0.00014932,2]
[401158301,1767993039594,-1078.94,0.00014934,2]
[401158302,1767993039603,-462.02140532,0.00014944,2]
[401158303,1767993039614,-986.0,0.00014944,2]
[401158304,1767993039627,-250.0,0.00014947,2]
[401158305,1767993039637,-600.0,0.00014947,2]
[401158306,1767993039648,-398.9473792,0.00014978,2]
[401158307,1767993039658,-500.0,0.00014978,2]
[401158308,1767993039668,-500.0,0.00014978,2]
[401158309,1767993039678,-500.0,0.00014978,2]
[401158310,1767993039688,-500.0,0.00014978,2]
[401158311,1767993039698,-500.0,0.00014978,2]
[401158312,1767993039707,-597.23624248,0.00014978,2]
[401158313,1767993039718,-500.0,0.00014978,2]
[401158314,1767993039728,-484.1427963,0.00014978,2]
[401158315,1767993039738,-986.0,0.00014999,2]
[401158316,1767993039748,-17262.86885335,0.00015022,2]
[401158317,1767993039757,-165.35,0.00015029,2]
[401158318,1767993039767,-986.0,0.00015054,2]
[401158319,1767993039777,-500.0,0.00015096,2]
[401158320,1767993039787,-986.0,0.00015108,2]
[401158321,1767993039797,-986.0,0.00015163,2]
[401158322,1767993039807,-511.43021308,0.00015202,2]
[401158323,1767993039819,-1078.94,0.00015208,2]
[401158324,1767993039829,-185.8442567,0.0001521,2]
[401158325,1767993039839,-600.0,0.00015212,2]
[401158326,1767993039849,-600.0,0.00015212,2]
[401158327,1767993039859,-986.0,0.00015218,2]
[401158328,1767993039870,-200.0,0.00015218,2]
[401158329,1767993039881,-330.0939675,0.00015218,2]
[401158330,1767993039890,-986.0,0.00015273,2]
[401158333,1767993039900,-19524.96634931,0.00015303,2]
[401158335,1767993039910,-1680.0,0.00015306,2]
[401158337,1767993039920,-500.0,0.0001531,2]
[401158339,1767993039929,-500.0,0.0001531,2]
[401158341,1767993039939,-500.0,0.0001531,2]
[401158343,1767993039949,-1000.0,0.0001531,2]
[401158344,1767993039958,-500.0,0.0001531,2]
[401158345,1767993039969,-986.0,0.00015328,2]
[401158346,1767993039978,-151.0,0.0001536,2]
[401158347,1767993039988,-151.0,0.00015368,2]
[401158348,1767993039999,-17262.86885335,0.00015382,2]
[401158349,1767993040009,-986.0,0.00015382,2]
[401158350,1767993040021,-151.0,0.00015383,2]
[401158351,1767993040031,-151.0,0.00015383,2]
[401158352,1767993040040,-151.0,0.00015389,2]
[401158353,1767993040049,-151.0,0.00015389,2]
[401158354,1767993040058,-200.0,0.00015436,2]
[401158355,1767993040068,-986.0,0.00015437,2]
[401158356,1767993040078,-1078.94,0.00015482,2]
[401158357,1767993040088,-986.0,0.00015492,2]
[401158358,1767993040098,-301.85,0.00015543,2]
[401158359,1767993040108,-986.0,0.00015547,2]
[401158360,1767993040118,-755.5,0.00015569,2]
[401158361,1767993040128,-986.0,0.00015601,2]
[401158362,1767993040138,-1008.63471863,0.00015656,2]
[401158363,1767993040147,-500.0,0.00015671,2]
[401158364,1767993040156,-19524.96634931,0.00015674,2]
[401158365,1767993040169,-511.43021308,0.00015741,2]
[401158366,1767993040179,-17262.86885335,0.00015741,2]
[401158367,1767993040188,-1078.94,0.00015756,2]
[401158368,1767993040198,-1000.0,0.0001576,2]
[401158369,1767993040207,-200.0,0.00015766,2]
[401158370,1767993040216,-854.19,0.00015797,2]
[401158371,1767993040225,-471.2634171,0.00015858,2]
[401158372,1767993040236,-883.90380779,0.000159,2]
[401158373,1767993040245,-883.90380775,0.000159,2]
[401158374,1767993040256,-883.90380775,0.000159,2]
[401158375,1767993040266,-883.90380775,0.000159,2]
[401158376,1767993040275,-883.90380775,0.000159,2]
[401158377,1767993040285,-883.90380775,0.000159,2]
[401158378,1767993040294,-1078.94,0.0001603,2]
[401158379,1767993040304,-19524.96634931,0.00016045,2]
[401158380,1767993040314,-17262.86885335,0.00016101,2]
[401158381,1767993040323,-150.0,0.000162,2]
[401158382,1767993040332,-1000.0,0.00016224,2]
[401158383,1767993040342,-755.5,0.00016277,2]
[401158384,1767993040352,-511.43021308,0.00016281,2]
[401158385,1767993040361,-1078.94,0.00016304,2]
[401158386,1767993040370,-301.85,0.00016321,2]
[401158387,1767993040380,-500.0,0.00016384,2]
[401158388,1767993040390,-19524.96634931,0.00016416,2]
[401158389,1767993040399,-723.03644273,0.00016438,2]
[401158390,1767993040408,-723.03644273,0.00016438,2]
[401158391,1767993040417,-723.03644273,0.00016438,2]
[401158392,1767993040426,-723.03644273,0.00016438,2]
[401158393,1767993040436,-723.03644273,0.00016438,2]
[401158394,1767993040445,-723.03644273,0.00016438,2]
[401158395,1767993040454,-723.03644273,0.00016438,2]
[401158396,1767993040463,-723.03644273,0.00016438,2]
[401158397,1767993040472,-723.03644273,0.00016438,2]
[401158398,1767993040481,-723.03644273,0.00016438,2]
[401158399,1767993040491,-723.03644273,0.00016438,2]
[401158400,1767993040501,-723.03644273,0.00016438,2]
[401158401,1767993040510,-723.03644273,0.00016438,2]
[401158402,1767993040519,-723.03644273,0.00016438,2]
[401158403,1767993040529,-723.03644273,0.00016438,2]
[401158404,1767993040538,-723.03644273,0.00016438,2]
[401158405,1767993040548,-723.03644273,0.00016438,2]
[401158406,1767993040557,-723.03644273,0.00016438,2]
[401158407,1767993040566,-723.03644273,0.00016438,2]
[401158408,1767993040576,-723.03644273,0.00016438,2]
[401158409,1767993040586,-723.03644273,0.00016438,2]
[401158410,1767993040596,-723.03644273,0.00016438,2]
[401158411,1767993040605,-723.03644273,0.00016438,2]
[401158412,1767993040614,-723.03644273,0.00016438,2]
[401158413,1767993040623,-723.03644273,0.00016438,2]
[401158414,1767993040633,-723.03644273,0.00016438,2]
[401158415,1767993040643,-723.03644273,0.00016438,2]
[401158416,1767993040652,-723.03644273,0.00016438,2]
[401158417,1767993040662,-723.03644273,0.00016438,2]
[401158418,1767993040672,-723.03644273,0.00016438,2]
[401158419,1767993040681,-723.03644273,0.00016438,2]
[401158420,1767993040691,-723.03644273,0.00016438,2]
[401158421,1767993040700,-723.03644273,0.00016438,2]
[401158422,1767993040709,-723.03644273,0.00016438,2]
[401158423,1767993040718,-723.03644273,0.00016438,2]
[401158424,1767993040728,-723.03644273,0.00016438,2]
[401158425,1767993040738,-723.03644273,0.00016438,2]
[401158426,1767993040748,-723.03644273,0.00016438,2]
[401158427,1767993040758,-723.03644273,0.00016438,2]
[401158428,1767993040767,-723.03644273,0.00016438,2]
[401158429,1767993040777,-723.03644273,0.00016438,2]
[401158430,1767993040787,-723.03644273,0.00016438,2]
[401158431,1767993040796,-723.03644273,0.00016438,2]
[401158432,1767993040806,-723.03644273,0.00016438,2]
[401158433,1767993040816,-723.03644273,0.00016438,2]
[401158434,1767993040826,-723.03644273,0.00016438,2]
[401158435,1767993040836,-723.03644273,0.00016438,2]
[401158436,1767993040846,-723.03644273,0.00016438,2]
[401158437,1767993040855,-723.03644273,0.00016438,2]
[401158438,1767993040864,-723.03644273,0.00016438,2]
[401158439,1767993040874,-723.03644273,0.00016438,2]
[401158440,1767993040884,-723.03644273,0.00016438,2]
[401158441,1767993040894,-723.03644273,0.00016438,2]
[401158442,1767993040903,-723.03644273,0.00016438,2]
[401158443,1767993040912,-723.03644273,0.00016438,2]
[401158444,1767993040922,-723.03644273,0.00016438,2]
[401158445,1767993040932,-723.03644273,0.00016438,2]
[401158446,1767993040942,-723.03644273,0.00016438,2]
[401158447,1767993040952,-723.03644273,0.00016438,2]
[401158448,1767993040961,-723.03644273,0.00016438,2]
[401158449,1767993040971,-723.03644273,0.00016438,2]
[401158450,1767993040982,-723.03644273,0.00016438,2]
[401158451,1767993040992,-698.93522797,0.00016438,2]
[401158452,1767993041001,-698.93522797,0.00016438,2]
[401158453,1767993041011,-698.93522797,0.00016438,2]
[401158454,1767993041020,-698.93522797,0.00016438,2]
[401158455,1767993041030,-698.93522797,0.00016438,2]
[401158456,1767993041039,-698.93522797,0.00016438,2]
[401158457,1767993041049,-698.93522797,0.00016438,2]
[401158458,1767993041059,-698.93522797,0.00016438,2]
[401158459,1767993041069,-698.93522797,0.00016438,2]
[401158460,1767993041079,-698.93522797,0.00016438,2]
[401158461,1767993041089,-698.93522797,0.00016438,2]
[401158462,1767993041098,-698.93522797,0.00016438,2]
[401158463,1767993041107,-698.93522797,0.00016438,2]
[401158464,1767993041117,-698.93522797,0.00016438,2]
[401158465,1767993041127,-698.93522797,0.00016438,2]
[401158466,1767993041136,-698.93522797,0.00016438,2]
[401158467,1767993041145,-698.93522797,0.00016438,2]
[401158468,1767993041155,-698.93522797,0.00016438,2]
[401158469,1767993041165,-698.93522797,0.00016438,2]
[401158470,1767993041178,-698.93522797,0.00016438,2]
[401158471,1767993041188,-698.93522797,0.00016438,2]
[401158472,1767993041197,-698.93522797,0.00016438,2]
[401158473,1767993041206,-698.93522797,0.00016438,2]
[401158474,1767993041217,-698.93522797,0.00016438,2]
[401158475,1767993041226,-698.93522797,0.00016438,2]
[401158476,1767993041235,-601.35730681,0.00016438,2]
[401158477,1767993042085,-97.57792116,0.00016438,2]
[401158478,1767993042094,-698.93522797,0.00016438,2]
[401158479,1767993042103,-196.82837428,0.00016438,2]
[401158481,1767993042785,-697.10743982,0.00014578,2]
[401158482,1767993042795,-603.17162572,0.00016438,2]
[401158483,1767993042804,-150.0,0.00016448,2]
[401158484,1767993042814,-8821.59003085,0.00016461,2]
[401158485,1767993042825,-8441.2788225,0.00016461,2]
[401158486,1767993042833,-154.09822426,0.00016521,2]
[401158487,1767993042844,-345.90177574,0.00016521,2]
[401158488,1767993042853,-921.92486907,0.00016578,2]
[401158489,1767993042865,-157.01513093,0.00016578,2]
[401158490,1767993042875,-152.0,0.00016742,3]
[401158491,1767993042884,-221.58486907,0.00016787,2]
[401158492,1767993042898,-339.17176295,0.00016787,2]
[401158493,1767993042909,-1033.83778917,0.00016787,2]
[401158494,1767993042920,-1421.76578285,0.00016787,2]
[401158495,1767993042931,-1668.2263106,0.00016787,2]
[401158496,1767993042942,-14840.37983467,0.00016787,2]
[401158497,1767993042952,-511.43021308,0.00016821,2]
[401158498,1767993042962,-17262.86885335,0.00016821,2]
[401158499,1767993042971,-2351.0,0.00016837,2]
[401158500,1767993042983,-1078.94,0.00016852,2]
[401158501,1767993042992,-45886.99669035,0.00016855,2]
[401158502,1767993043001,-165.35,0.0001691,2]
[401158503,1767993043011,-755.5,0.00016984,2]
[401158504,1767993043020,-2000.0,0.00017,2]
[401158505,1767993043030,-250.0,0.00017,2]
[401158506,1767993043039,-193.43465493,0.00017,2]